[Event "4th Tata Steel India Rapid Women 2022"]
[Site "Kolkota"]
[Date "2022.11.29"]
[Round "1.1"]
[White "Muzychuk, Anna"]
[Black "Koneru, Humpy"]
[Result "0-1"]
[ECO "C60"]
[WhiteElo "2525"]
[BlackElo "2574"]
[Annotator "TA"]
[PlyCount "60"]
[EventDate "2022.11.29"]
[EventType "tourn"]
[EventCountry "IND"]
[SourceTitle "playchess.com"]
[Source "ChessBase"]
[SourceQuality "1"]
[TimeControl "900+10"]

{[%evp 9,60,14,22,25,25,23,21,17,23,0,0,0,0,0,0,-18,0,0,0,0,0,-2,0,0,21,19,38,35,39,37,28,-39,-36,-72,-67,-107,-123,-190,-198,-651,-650,-984,-955,-916,-647,-1021,-963,-29984,-29985,-29986,-29987,-29987,-5832]} 1. e4 {[%emt 0:00:02]} e5 {[%emt 0:00:02]} 2. Nf3 {[%emt 0:00:02]} Nc6 {[%emt 0:00:03]} 3. Bb5 {[%emt 0:00:02]} Nge7 {[%emt 0:00:03]} 4. Nc3 {[%emt 0:00:39]} Ng6 {[%emt 0:00:06]} 5. d4 {[%emt 0:02:47]} exd4 {[%emt 0:00:06]} 6. Nxd4 {[%emt 0:00:02] C60: Ruy Lopez: Unusual Black 3rd moves and 3...g6.} Nxd4 $1 {[%emt 0:00:03][%mdl 4] is recently more successful than 6...Bc5.} 7. Qxd4 {[%emt 0:00:02]} c6 {[%emt 0:00:10]} 8. Be2 {[%emt 0:01:02] The position is equal.} (8. Bd3 {simplifies} Qb6 9. Ne2 Qxd4 10. Nxd4 Ne5 11. Be2) 8... Qb6 {[%emt 0:00:32]} 9. Be3 {[%emt 0:00:26]} Qxb2 {[%emt 0:03:54]} 10. Rb1 {[%emt 0:00:14]} Qa3 {[%emt 0:00:03]} (10... Qxc2 $2 11. Rb3 Be7 12. Bd1 $18) 11. O-O {[%emt 0:01:40]} Qd6 {[%emt 0:01:36] Prevents e5.} 12. Qc4 {[%emt 0:02:09] [#]} Be7 $146 {[%emt 0:02:55]} (12... b5 $5 {[%cal Rb5c4]} 13. Qb3 a5 $11) ({Predecessor:} 12... Nf4 13. Rfd1 Qe5 14. Bg4 Be7 15. g3 Ne6 16. f4 Qa5 17. Kg2 b5 18. Qd3 b4 {1-0 (42) De la Villa Garcia,J (2485)-Allan,D (2310) Szirak 1987}) 13. f4 {[%emt 0:00:22]} b5 {[%emt 0:02:11] Prevents e5.} 14. Qb3 {[%emt 0:00:04]} O-O {[%emt 0:01:31]} 15. a4 {[%emt 0:01:33]} a6 {[%emt 0:02:27]} 16. e5 {[%emt 0:02:30]} Qc7 {[%emt 0:00:06]} 17. Ne4 $1 {[%emt 0:00:37]} d5 {[%emt 0:01:35]} (17... Bb7 {looks sharper.} 18. Rfd1 c5 19. Nd6 Bxd6 20. Rxd6 Bc6) 18. exd6 {[%emt 0:00:11]} Bxd6 {[%emt 0:00:02]} 19. Nxd6 {[%emt 0:00:14]} Qxd6 {[%emt 0:00:02]} 20. f5 {[%emt 0:00:56]} (20. Rbd1 $1 $11 Qe7 21. Bf3) 20... Ne7 $15 {[%emt 0:00:09]} 21. f6 {[%emt 0:01:22] aiming for fxg7.} Nd5 $36 {[%emt 0:00:22][%mdl 2048] And now ...Re8 would win. Black has the initiative.} 22. Rbd1 {[%emt 0:01:13] [#] Threatens to win with fxg7.} Qe5 $1 {[%emt 0:00:19]} (22... gxf6 $6 23. c4 bxc4 24. Bxc4 $11) 23. fxg7 {[%emt 0:00:09]} (23. Bc5 $17 Nc3 24. Bxf8) 23... Re8 $19 {[%emt 0:00:21] Chess con chili.} ({Stronger than} 23... Qxe3+ 24. Qxe3 Nxe3 25. gxf8=B (25. gxf8=R+ Kxf8 26. Bf3 Nxd1 $11) 25... Kxf8 26. Bf3 (26. Rd8+ Ke7 $17) 26... Nxd1 27. Bxc6 $11 (27. Rxd1 bxa4 28. Bxc6 Rb8 $11)) 24. Rf3 {[%emt 0:00:06]} (24. Bd2 Qd4+ 25. Kh1 Rxe2 26. Qf3) 24... Bg4 {[%emt 0:00:11]} (24... Nxe3 $2 25. Qxf7#) 25. Rdf1 {[%emt 0:00:20]} Bxf3 {[%emt 0:00:07]} (25... Nxe3 $2 26. Qxf7#) 26. Rxf3 {[%emt 0:00:01]} Re7 {[%emt 0:00:15][%cal Rd5e3]} (26... Nxe3 $2 27. Qxf7#) 27. Bd3 {[%emt 0:00:18]} Nxe3 {[%emt 0:00:11]} 28. Bxh7+ {[%emt 0:00:05]} Kxh7 {[%emt 0:00:03] Black mates.} 29. Qd3+ {[%emt 0:00:02]} Kg8 {[%emt 0:00:09]} 30. Rh3 {[%emt 0:00:04]} Nf5 {[%emt 0:00:10] Weighted Error Value: White=1.13/Black=0.29 (precise)} ({But not} 30... bxa4 31. Qh7#) (30... Qa1+ $142 31. Kf2 Nd1+ 32. Kg3 Qe5+ 33. Kf3 Qf6+ 34. Kg3 Qg5+ 35. Kf3 Re3+ 36. Qxe3 Qxe3+ 37. Kg4 Nf2+ 38. Kf5 Qe4+ 39. Kg5 Nxh3+ 40. Kh5 Kxg7 41. gxh3 Rh8+ 42. Kg5 f6#) 0-1

[Event "4th Tata Steel India Rapid Women 2022"]
[Site "Kolkota"]
[Date "2022.11.29"]
[Round "1.2"]
[White "Muzychuk, Mariya"]
[Black "Vantika Agrawal"]
[Result "1-0"]
[ECO "B90"]
[WhiteElo "2528"]
[BlackElo "2362"]
[Annotator "TA"]
[PlyCount "96"]
[EventDate "2022.11.29"]
[EventType "tourn"]
[EventCountry "IND"]
[SourceTitle "playchess.com"]
[Source "ChessBase"]
[SourceQuality "1"]
[TimeControl "900+10"]

{[%evp 15,96,23,22,30,33,32,16,34,38,43,39,26,51,0,4,6,6,5,25,0,0,-33,-20,-25,-35,-35,0,0,9,0,0,8,20,0,21,0,0,0,0,0,18,2,298,311,305,241,734,710,724,719,602,670,-133,727,720,725,727,722,717,689,703,705,690,681,701,695,870,856,1154,1129,1148,1053,2274,2103,2005,1961,29966,29967,29966,29966,29970,29970,5314]} 1. e4 {[%emt 0:00:02]} c5 {[%emt 0:00:04]} 2. Nf3 {[%emt 0:00:03]} d6 {[%emt 0:00:02]} 3. d4 {[%emt 0:00:02]} cxd4 {[%emt 0:00:03]} 4. Nxd4 {[%emt 0:00:02]} Nf6 {[%emt 0:00:02]} 5. Nc3 {[%emt 0:00:05]} a6 {[%emt 0:00:02]} 6. Be3 {[%emt 0:00:06]} e5 {[%emt 0:00:05]} 7. Nf3 {[%emt 0:00:06]} Be7 {[%emt 0:00:16]} 8. Bc4 {[%emt 0:00:11]} Be6 {[%emt 0:00:48]} 9. Bxe6 {[%emt 0:01:38] B90: Sicilian Najdorf: Unusual White 6th moves, 6 Be3 Ng4 and 6 Be3 e5.} fxe6 {[%emt 0:00:03]} 10. Ng5 {[%emt 0:00:05]} Qd7 {[%emt 0:00:16]} 11. Qf3 {[%emt 0:00:07] The position is equal.} Nc6 {[%emt 0:03:58]} 12. Qh3 {[%emt 0:01:04] Hoping for Na4.} Nd8 $1 {[%emt 0:02:47]} 13. Bb6 {[%emt 0:00:51]} h6 {[%emt 0:00:40]} 14. O-O {[%emt 0:03:16]} (14. Bxd8 Bxd8 15. Nxe6 (15. Qxe6+ Qe7 $11) 15... Ba5 $11) (14. O-O-O $14) 14... O-O {[%emt 0:00:40]} 15. Bxd8 {[%emt 0:00:05]} hxg5 {[%emt 0:00:15]} 16. Bxe7 {[%emt 0:00:06]} Qxe7 {[%emt 0:00:03] [#]} 17. Qg3 $146 {[%emt 0:00:11]} ({Predecessor:} 17. Rad1 Rac8 18. Qe3 g4 19. Qb6 Rc6 20. Qb4 Qc7 21. Rd3 Rd8 22. Rfd1 Rc4 23. Qb3 {0-1 (33) Martinez Montes,J (2069)-Sarana,A (2662) Santiago de Compostela 2022}) 17... g4 {[%emt 0:01:38]} 18. a4 {[%emt 0:01:36]} Rac8 {[%emt 0:00:21]} 19. Rad1 {[%emt 0:01:06]} Rc6 {[%emt 0:02:18]} 20. Rd3 {[%emt 0:00:24]} Qc7 {[%emt 0:00:39]} (20... Rb6 $5 {[%cal Rb6b2]}) 21. h3 {[%emt 0:01:20]} Rc4 {[%emt 0:02:15]} 22. Re1 {[%emt 0:01:39]} gxh3 {[%emt 0:01:10]} 23. Qxh3 {[%emt 0:00:04]} Qe7 {[%emt 0:00:16][%cal Ob7b5]} 24. Qh4 {[%emt 0:00:14]} (24. Red1 $5 {[%cal Rd3d6]}) 24... Rfc8 {[%emt 0:00:16][%cal Od6d5]} 25. Qg5 {[%emt 0:03:01]} Rb4 {[%emt 0:00:11]} 26. b3 {[%emt 0:00:22]} Rd4 {[%emt 0:00:10] [#] And now ...Rxd3 would win.} 27. Rh3 {[%emt 0:00:50]} Qe8 {[%emt 0:00:10]} 28. Ree3 {[%emt 0:00:40] aiming for Reg3.} b5 $2 {[%emt 0:00:10][%mdl 8192] White now steadily converts the win.} (28... Rxc3 $1 $11 {and Black is okay.} 29. Rxc3 Nxe4) 29. axb5 $18 {[%emt 0:00:04]} axb5 {[%emt 0:00:01]} 30. Reg3 $40 {[%emt 0:00:11][%csl Gg3][%cal Rg5g7][%mdl 128] White attacks with force.} Qe7 {[%emt 0:00:19]} (30... Qf8 31. Kh2 (31. Nxb5 Rd1+ 32. Kh2 Rxc2 $17) 31... b4) 31. Rh6 {[%emt 0:00:30]} ({Not} 31. Nxb5 Rd1+ 32. Kh2 Rxc2 $11) 31... b4 {[%emt 0:00:09]} 32. Rg6 {[%emt 0:00:08][%cal Rg6g7]} ({Worse is} 32. Qxf6 Qxf6 33. Rxf6 Rxc3 $11) 32... Rc7 {[%emt 0:00:09]} 33. Nb5 {[%emt 0:00:18][%cal Ob5c7]} ({Inferior is} 33. Qxf6 Qxf6 34. Rxf6 Rxc3 $11) 33... Rd1+ {[%emt 0:00:08]} 34. Kh2 {[%cal Ob5c7]} Nxe4 {[%emt 0:00:11] [#]} 35. Rxg7+ $3 {[%emt 0:00:16][%mdl 576] Deflection} Qxg7 {[%emt 0:00:13]} 36. Qd8+ {[%emt 0:00:01]} Kh7 {[%emt 0:00:09]} 37. Rxg7+ {[%emt 0:00:06]} Rxg7 {[%emt 0:00:11]} 38. Qh4+ {[%emt 0:00:02]} Kg8 {[%emt 0:00:06]} 39. Qxe4 {[%emt 0:00:05]} Rh7+ {[%emt 0:00:13]} 40. Kg3 {[%emt 0:00:01]} Rg7+ {[%emt 0:00:10]} 41. Kf3 {[%emt 0:00:03]} Rf7+ {[%emt 0:00:11]} 42. Ke2 {[%emt 0:00:07]} Rd5 {[%emt 0:00:09]} 43. Qxb4 {[%emt 0:00:16]} Rc5 {[%emt 0:00:11]} 44. Qg4+ {[%emt 0:00:23]} Kf8 {[%emt 0:00:07]} 45. c4 {[%emt 0:00:02]} Ke7 {[%emt 0:00:12]} 46. Qg5+ {[%emt 0:00:15] White mates.} Kd7 {[%emt 0:00:09]} 47. Qg8 {[%emt 0:00:02]} Re7 {[%emt 0:00:12]} 48. Qb8 {[%emt 0:00:04]} Rc8 {[%emt 0:00:12] Weighted Error Value: White=0.12 (very precise) /Black=0.24 (precise)} 1-0

[Event "4th Tata Steel India Rapid Women 2022"]
[Site "Kolkota"]
[Date "2022.11.29"]
[Round "1.3"]
[White "Savitha Shri B"]
[Black "Dzagnidze, Nana"]
[Result "0-1"]
[ECO "B47"]
[WhiteElo "2411"]
[BlackElo "2517"]
[Annotator "TA"]
[PlyCount "98"]
[EventDate "2022.11.29"]
[EventType "tourn"]
[EventCountry "IND"]
[SourceTitle "playchess.com"]
[Source "ChessBase"]
[SourceQuality "1"]
[TimeControl "900+10"]

{[%evp 15,98,10,16,0,0,2,25,18,18,18,25,18,25,20,16,25,32,16,17,20,30,38,32,29,58,63,70,28,57,6,16,17,12,7,58,0,0,3,16,0,248,-8,-8,-12,-10,-8,-8,-8,-8,-8,-8,-72,-56,-98,-109,-155,-140,-134,-155,-409,-403,-391,-389,-627,-594,-629,-607,-776,-763,-922,-912,-1093,-1038,-1431,-1436,-1455,-1396,-2712,-2567,-2635,-2517,-2400,-2308,-1953,-1878]} 1. e4 {[%emt 0:00:01]} c5 {[%emt 0:00:02]} 2. Nf3 {[%emt 0:00:02]} e6 {[%emt 0:00:05]} 3. d4 {[%emt 0:00:02]} cxd4 {[%emt 0:00:01]} 4. Nxd4 {[%emt 0:00:04]} Nc6 {[%emt 0:00:02]} 5. Nc3 {[%emt 0:00:21]} Qc7 {[%emt 0:00:03]} 6. Nxc6 {[%emt 0:00:43]} bxc6 {[%emt 0:00:26]} 7. Bd3 {[%emt 0:00:09]} Nf6 {[%emt 0:01:33]} 8. O-O {[%emt 0:00:16]} d5 {[%emt 0:00:14]} 9. exd5 {[%emt 0:02:02] B47: Sicilian: Taimanov: 5 Nc3 Qc7 6 f4, 6 g3 and 6 Be2.} exd5 {[%emt 0:00:47]} 10. Re1+ {[%emt 0:01:01]} Be7 {[%emt 0:00:03]} 11. Qf3 {[%emt 0:00:42] White has an edge.} O-O {[%emt 0:02:34]} 12. Bf4 {[%emt 0:02:26]} Bd6 {[%emt 0:00:18]} 13. Bxd6 {[%emt 0:00:11]} Qxd6 {[%emt 0:00:01] [#]} 14. Qg3 $146 {[%emt 0:00:24]} ({Predecessor:} 14. h3 Bb7 15. Re2 Rfe8 16. Rae1 c5 17. Rxe8+ Rxe8 18. Rxe8+ Nxe8 19. Qe3 Bc6 20. Nb5 Bxb5 21. Bxb5 {½-½ (26) Luksas,J (2440)-Schroeder,F (2487) ICCF corr 1997}) 14... Qb4 {[%emt 0:00:56]} (14... Qxg3 {simplifies} 15. hxg3 c5 16. b3 Be6) 15. a3 {[%emt 0:00:16]} Qb8 {[%emt 0:03:10]} (15... Qxb2 $2 16. Reb1 Qxc3 17. Bxh7+ $1 {[%mdl 512]} Nxh7 18. Qxc3 $18) 16. b4 {[%emt 0:01:09]} Qxg3 {[%emt 0:01:08]} (16... Bd7 {seems wilder.} 17. Qe5 a5 18. b5 Rc8) 17. hxg3 {[%emt 0:00:02]} Be6 {[%emt 0:00:24]} 18. Ne2 {[%emt 0:00:48][%cal Bc3e2,Be2d4,Bd4b3,Bb3c5][%mdl 32]} a5 {[%emt 0:00:41]} 19. Nd4 {[%emt 0:00:14][%csl LRc6,LRe6]} axb4 {[%emt 0:00:11]} 20. axb4 {[%emt 0:00:20]} ({Don't play} 20. Nxc6 bxa3 21. Ra2 Bd7 $15) 20... Bd7 {[%emt 0:00:33]} 21. Nb3 {[%emt 0:01:08]} Rfb8 {[%emt 0:00:34]} 22. c3 {[%emt 0:00:40]} (22. Ra5 $1 $14) 22... Kf8 {[%emt 0:00:10]} 23. f3 {[%emt 0:00:08]} h5 {[%emt 0:00:08] Prevents g4.} 24. Kf2 {[%emt 0:00:20]} g6 {[%emt 0:00:09]} ({Black should play} 24... Be6 $11) 25. Reb1 {[%emt 0:01:01]} (25. Nc5 $14) 25... Ne8 $11 {[%emt 0:01:18]} 26. Nc5 {[%emt 0:01:13]} Bc8 {[%emt 0:00:03]} 27. Ba6 {[%emt 0:01:11]} Bxa6 $2 {[%emt 0:00:25]} (27... Nc7 $11 {and Black stays safe.} 28. Bd3 Ke7) 28. Nxa6 $2 {[%emt 0:00:02]} ({Only move:} 28. Nd7+ $18 Ke7 29. Nxb8 Rxb8 30. Rxa6) 28... Rb7 {[%emt 0:00:21] And now ...Rba7 would win.} 29. Nc5 {[%emt 0:01:23][%csl LRa8,LRb7]} Rba7 {[%emt 0:00:02]} 30. Nd7+ {[%emt 0:00:53]} Ke7 {[%emt 0:00:10]} 31. Rxa7 {[%emt 0:00:01]} Rxa7 {[%emt 0:00:02][%mdl 4096] Endgame KRN-KRN} 32. Ne5 {[%emt 0:00:01]} Kd6 {[%emt 0:00:29]} 33. Nd3 {[%emt 0:00:44]} (33. Re1 $11 {remains equal.}) 33... Nc7 $17 {[%emt 0:00:16]} 34. Ke3 {[%emt 0:00:30] [#]} Nb5 $1 {[%emt 0:00:14]} 35. Kd2 {[%emt 0:00:12] [#]} (35. Rc1 $142) 35... Na3 $1 {[%emt 0:00:07]} 36. Re1 {[%emt 0:00:14]} Nc4+ {[%emt 0:00:02]} 37. Kc2 $2 {[%emt 0:00:01] This move loses the game for White.} (37. Kd1 $17 {was worth a try.}) 37... Ra2+ $19 {[%emt 0:00:03]} 38. Kb3 {[%emt 0:00:19]} Rxg2 {[%emt 0:00:15]} 39. Re8 $2 {[%emt 0:00:08]} (39. Nc5) 39... Rxg3 {[%emt 0:00:20] Black is clearly winning.} 40. Nc5 {[%emt 0:00:06]} Rxf3 {[%emt 0:00:27]} 41. Rd8+ {[%emt 0:00:01]} Ke7 {[%emt 0:00:34]} 42. Rc8 {[%emt 0:00:18]} Ne5 {[%emt 0:00:12]} 43. Rc7+ {[%emt 0:00:21]} Kf6 {[%emt 0:00:36] White must now prevent ...h4.} 44. Na6 {[%emt 0:00:10]} h4 {[%emt 0:00:19][%cal Bh5h4,Bh4h3][%mdl 32] Strongly threatening ...h3.} 45. Rc8 {[%emt 0:00:10]} h3 {[%emt 0:00:04] aiming for ...Kg7.} 46. Rh8 {[%emt 0:00:02]} Kg7 {[%emt 0:00:15]} 47. Rh4 {[%emt 0:00:15]} g5 {[%emt 0:00:02][%cal Bg6g5,Bg5g4][%mdl 32]} 48. Rh5 {[%emt 0:00:01]} Kg6 {[%emt 0:00:03]} 49. Rh8 {[%emt 0:00:02]} g4 {[%emt 0:00:04] Weighted Error Value: White=0.69/Black=0.16 (very precise)} 0-1

[Event "4th Tata Steel India Rapid Women 2022"]
[Site "Kolkota"]
[Date "2022.11.29"]
[Round "1.4"]
[White "Vaishali, Rameshbabu"]
[Black "Harika, Dronavalli"]
[Result "1/2-1/2"]
[ECO "D10"]
[WhiteElo "2454"]
[BlackElo "2507"]
[Annotator "TA"]
[PlyCount "83"]
[EventDate "2022.11.29"]
[EventType "tourn"]
[EventCountry "IND"]
[SourceTitle "playchess.com"]
[Source "ChessBase"]
[SourceQuality "1"]
[TimeControl "900+10"]

{[%evp 9,83,17,33,30,31,18,23,29,36,29,31,37,27,30,43,37,70,67,108,119,101,108,139,72,113,112,112,113,98,100,97,100,132,116,122,109,130,60,62,40,37,35,46,37,33,10,12,12,23,0,0,0,0,0,0,0,0,0,8,0,0,0,0,0,0,0,0,0,0,0,0,0,0,0,0,0]} 1. d4 {[%emt 0:00:10]} d5 {[%emt 0:00:03]} 2. c4 {[%emt 0:00:02]} c6 {[%emt 0:00:46]} 3. cxd5 {[%emt 0:00:04]} cxd5 {[%emt 0:00:01]} 4. Bf4 {[%emt 0:00:04]} Nc6 {[%emt 0:00:48]} 5. e3 {[%emt 0:00:16]} e6 {[%emt 0:01:22]} 6. Nc3 {[%emt 0:00:08] D10: Slav Defence: 3 cxd5 (without early Nf3) and 3 Nc3.} Bd6 $1 {[%emt 0:00:06] 6...Bd6 is better than 6...Nf6.} 7. Bg3 {[%emt 0:01:18]} Nge7 {[%emt 0:00:40]} 8. Bd3 {[%emt 0:00:10] White has an edge.} h6 {[%emt 0:01:41]} 9. Nf3 {[%emt 0:00:32] [#]} Bxg3 $146 {[%emt 0:00:17]} ({Predecessor:} 9... O-O 10. O-O Bxg3 11. hxg3 Qd6 12. Rc1 Rd8 13. Nb5 Qb8 14. Qb3 Bd7 15. Qa3 Be8 {0-1 (70) Abdusattorov,N (2651)-Matlakov,M (2674) Chess.com INT 2022}) 10. hxg3 {[%emt 0:00:02]} Bd7 {[%emt 0:00:02]} 11. a3 {[%emt 0:01:39]} a6 {[%emt 0:01:37]} 12. Rc1 {[%emt 0:03:05]} Qa5 {[%emt 0:01:40]} 13. g4 {[%emt 0:02:51]} b5 {[%emt 0:00:27]} 14. g5 {[%emt 0:00:44]} (14. Kf1 {is more complex.} f6 15. g5 fxg5 16. Nxg5 O-O 17. Kg1) 14... b4 {[%emt 0:01:59]} 15. axb4 {[%emt 0:00:04]} Nxb4 {[%emt 0:00:02]} 16. gxh6 {[%emt 0:00:33]} (16. Bb1 $142) 16... Rxh6 {[%emt 0:01:16]} 17. Rxh6 {[%emt 0:00:06]} gxh6 {[%emt 0:00:02]} 18. Ne5 {[%emt 0:00:42]} Nec6 {[%emt 0:00:41]} 19. Nxd7 {[%emt 0:02:36] White is more active.} Kxd7 {[%emt 0:00:01]} 20. Bb1 {[%emt 0:00:02] Inhibits Na2.} Rg8 {[%emt 0:00:29]} 21. Kf1 {[%emt 0:00:08]} Qd8 {[%emt 0:00:51]} 22. Qf3 {[%emt 0:00:33]} f5 {[%emt 0:00:57]} 23. Na4 {[%emt 0:00:34]} (23. Qh5 $16) 23... Qh4 $14 {[%emt 0:00:28] [#] Hoping for ...Qh1+.} 24. Nc5+ {[%emt 0:00:21]} Kd6 $1 {[%emt 0:00:30]} 25. g3 {[%emt 0:00:30]} Qg4 {[%emt 0:00:33]} 26. Qxg4 {[%emt 0:00:45] The board is on fire.} (26. Qh1 {with more complications.} h5 27. Qh2 a5 28. Bd3) 26... fxg4 {[%emt 0:01:14]} 27. Bd3 {[%emt 0:00:49]} Rb8 {[%emt 0:00:21]} 28. Be2 {[%emt 0:00:25]} h5 {[%emt 0:00:02]} 29. b3 {[%emt 0:00:18]} e5 {[%emt 0:00:27] The position is equal.} 30. dxe5+ {[%emt 0:00:23]} Nxe5 {[%emt 0:00:01]} 31. Nxa6 {[%emt 0:00:12]} Nxa6 {[%emt 0:00:04]} 32. Bxa6 {[%emt 0:00:01]} Rxb3 $11 {[%emt 0:00:01][%mdl 4096] Endgame KRB-KRN} 33. Be2 {[%emt 0:00:17]} Nc6 {[%emt 0:00:50]} 34. Rc2 {[%emt 0:00:12]} d4 {[%emt 0:00:09] [#] ...d3 is the strong threat.} 35. Rd2 {[%emt 0:00:08] Prevents d3.} Ke5 {[%emt 0:00:06]} 36. exd4+ {[%emt 0:00:03]} Nxd4 {[%emt 0:00:01]} 37. Kg2 {[%emt 0:00:07]} Rb1 {[%emt 0:00:10]} 38. Bd1 {[%emt 0:00:15]} Rc1 {[%emt 0:00:06]} 39. Rd3 {[%emt 0:00:07]} Ra1 {[%emt 0:00:18]} 40. Re3+ {[%emt 0:00:12]} Kf6 {[%emt 0:00:01]} 41. Rd3 {[%emt 0:00:08]} Ke5 {[%emt 0:00:11]} 42. Re3+ {[%emt 0:00:03] Weighted Error Value: White=0.10 (very precise) /Black=0.07 (flawless)} 1/2-1/2

[Event "4th Tata Steel India Rapid Women 2022"]
[Site "Kolkota"]
[Date "2022.11.29"]
[Round "1.5"]
[White "Kiolbasa, Oliwia"]
[Black "Ushenina, Anna"]
[Result "0-1"]
[ECO "B41"]
[WhiteElo "2406"]
[BlackElo "2454"]
[Annotator "TA"]
[PlyCount "98"]
[EventDate "2022.11.29"]
[EventType "tourn"]
[EventCountry "IND"]
[SourceTitle "playchess.com"]
[Source "ChessBase"]
[SourceQuality "1"]
[TimeControl "900+10"]

{[%evp 17,98,20,48,37,42,14,19,-25,-20,-14,-20,-21,-32,-16,-10,-35,-21,-20,-38,-58,-62,-70,-72,-132,-128,-135,-113,-125,-111,-194,-141,-350,-334,-385,-393,-386,-387,-526,-536,-545,-530,-510,-522,-501,-408,-439,-439,-416,-410,-500,-501,-630,-615,-678,-664,-664,-593,-735,-679,-754,-718,-6049,-6041,-5708,-5246,-4445,-2577,-2553,-1659,-5941,-5600,-5218,-1655,-1706,-1220,-29971,-29974,-29978,-29979,-29982,-29983,-29987,-29988]} 1. e4 {[%emt 0:00:03]} c5 {[%emt 0:00:04]} 2. Nf3 {[%emt 0:00:03]} e6 {[%emt 0:00:02]} 3. d4 {[%emt 0:00:03]} cxd4 {[%emt 0:00:02]} 4. Nxd4 {[%emt 0:00:02]} a6 {[%emt 0:00:01]} 5. c4 {[%emt 0:00:16]} Nf6 {[%emt 0:00:33]} 6. Nc3 {[%emt 0:00:03]} Qc7 {[%emt 0:00:13]} 7. Be2 {[%emt 0:00:14]} b6 {[%emt 0:03:36]} 8. O-O {[%emt 0:05:12]} Bb7 {[%emt 0:00:05]} 9. Qd3 {[%emt 0:01:06] 9.Qd3 scores better than 9.f3.} Bb4 {[%emt 0:04:17]} 10. f3 {[%emt 0:02:01] B41: Sicilian: Kan Variation: 5 c4.} (10. Bg5 {looks sharper.} Nc6 11. Nxc6 Bxc6 12. Rad1) 10... Nc6 {[%emt 0:03:23]} 11. Nxc6 {[%emt 0:00:46]} dxc6 {[%emt 0:00:06] [#]} 12. a3 $146 {[%emt 0:02:55] The position is equal.} ({Predecessor:} 12. Be3 Nd7 13. Rad1 Rd8 14. a3 Be7 15. f4 e5 16. b4 Nf8 17. Qc2 Ne6 18. fxe5 {½-½ (33) Kanarek,M (2484)-Teclaf,P (2542) Bydgoszcz 2022}) 12... Bc5+ {[%emt 0:00:16]} 13. Kh1 $1 {[%emt 0:00:01]} ({Avoid the trap} 13. Be3 $2 Rd8 $19) 13... Rd8 {[%emt 0:00:08]} 14. Qc2 {[%emt 0:00:02]} Bd4 {[%emt 0:00:13]} 15. f4 {[%emt 0:01:52]} e5 {[%emt 0:00:22]} 16. f5 {[%emt 0:00:16]} (16. c5 {with more complications.} O-O 17. cxb6 Qxb6 18. fxe5 Bxe5 19. Na4) 16... h6 {[%emt 0:00:08]} 17. Bf3 {[%emt 0:00:22]} O-O {[%emt 0:02:16]} 18. Ne2 {[%emt 0:00:03]} c5 {[%emt 0:02:07]} 19. Ng3 {[%emt 0:00:20]} Bc6 {[%emt 0:00:04]} 20. Qe2 {[%emt 0:01:58]} (20. Bd2 $142) 20... b5 $17 {[%emt 0:00:00] Black is more active.} 21. Nh5 {[%emt 0:00:15]} Qe7 {[%emt 0:00:00]} 22. Nxf6+ {[%emt 0:00:36]} Qxf6 {[%emt 0:00:00]} 23. g4 {[%emt 0:00:02]} (23. Re1 $17) 23... Qh4 {[%emt 0:00:00]} (23... bxc4 $19 24. Qg2 Qe7) 24. f6 $2 {[%emt 0:00:22]} (24. a4 $17 {was worth a try.}) 24... Qxf6 $19 {[%emt 0:00:09]} (24... gxf6 $2 25. Bg2 $19) 25. g5 {[%emt 0:00:10]} hxg5 {[%emt 0:00:05]} 26. Qg2 {[%emt 0:00:01]} Qg6 {[%emt 0:00:07]} (26... bxc4 $2 {too greedy.} 27. Bxg5 Qg6 28. Bxd8 Qxg2+ 29. Bxg2 $19) 27. Re1 {[%emt 0:00:22]} g4 {[%emt 0:00:48]} 28. Bxg4 {[%emt 0:00:09]} f5 {[%emt 0:00:20]} 29. Bf3 {[%emt 0:00:04]} Qxg2+ {[%emt 0:00:02]} 30. Bxg2 {[%emt 0:00:13]} Bxe4 {[%emt 0:00:20]} 31. Bxe4 {[%emt 0:00:11]} fxe4 {[%emt 0:00:01]} 32. cxb5 {[%emt 0:00:08]} axb5 {[%emt 0:00:02]} 33. Rb1 {[%emt 0:00:14]} Rf2 {[%emt 0:00:20]} 34. Bg5 {[%emt 0:00:09]} Rdf8 {[%emt 0:00:07]} 35. b3 {[%emt 0:00:11]} Ra2 {[%emt 0:00:05] [#] Strongly threatening ...Rff2.} 36. Rxe4 {[%emt 0:00:11]} Rff2 {[%emt 0:00:14][%csl Ga2][%cal Rf2h2]} 37. Rh4 {[%emt 0:00:09]} Rxa3 {[%emt 0:00:10]} 38. Be7 {[%emt 0:00:12]} Raa2 {[%emt 0:00:10] And now ...c4 would win.} 39. b4 {[%emt 0:00:08]} cxb4 {[%emt 0:00:17]} 40. Bxb4 {[%emt 0:00:13]} Rab2 {[%emt 0:00:06]} 41. Rxb2 {[%emt 0:00:02]} Rxb2 {[%emt 0:00:01][%mdl 4096] Endgame KRB-KRB} 42. Bd6 {[%emt 0:00:02]} Kf7 {[%emt 0:00:11] [#] White must now prevent ...Ke6.} 43. Re4 {[%emt 0:00:10]} Ke6 {[%emt 0:00:05]} 44. Bf8 {[%emt 0:00:02]} Kf5 {[%emt 0:00:13]} (44... b4 $142 45. Re1 b3) 45. Re1 {[%emt 0:00:10]} g6 {[%emt 0:00:14] ...b4 is the strong threat.} 46. Bh6 {[%emt 0:00:31]} b4 {[%emt 0:00:10][%cal Bb5b4,Bb4b3,Bb3b2][%mdl 32] Black mates.} 47. h3 {[%emt 0:00:13]} b3 {[%emt 0:00:06]} 48. Rf1+ {[%emt 0:00:05]} Rf2 {[%emt 0:00:04]} 49. Rb1 {[%emt 0:00:04]} b2 {[%emt 0:00:03] White got outplayed after the opening.   Weighted Error Value: White=0.59/Black=0.10 (very precise)} 0-1